fUST/lending_fUST_20260131
["ID","MTS","AMOUNT","RATE_DAILY","PERIOD"]
[404105203,1769853031891,-168.0,0.00032827,2]
[404105204,1769853031901,-168.0,0.00032842,2]
[404105205,1769853031910,-168.0,0.00033232,2]
[404105206,1769853031919,-2677.96673836,0.00034041,2]
[404105207,1769853031928,-645.09,0.00034066,30]
[404105208,1769853031937,-500.0,0.00034067,2]
[404105209,1769853031946,-500.0,0.00034067,2]
[404105210,1769853031955,-500.0,0.00034067,2]
[404105211,1769853031965,-500.0,0.00034067,2]
[404105212,1769853031974,-500.0,0.00034067,2]
[404105213,1769853031983,-258.3580415,0.00034067,2]
[404105214,1769853031993,-500.0,0.00034067,2]
[404105215,1769853032002,-250.34228489,0.00034067,2]
[404105216,1769853032012,-150.50874964,0.00034083,2]
[404105217,1769853032021,-500.0,0.00034083,2]
[404105218,1769853032030,-500.0,0.00034083,2]
[404105219,1769853032039,-500.0,0.00034083,2]
[404105220,1769853032048,-500.0,0.00034083,2]
[404105221,1769853032057,-202.64390128,0.00034083,2]
[404105223,1769853032066,-500.0,0.00034083,2]
[404105224,1769853032075,-500.0,0.00034083,2]
[404105226,1769853032084,-191.43539415,0.00034083,2]
[404105227,1769853032094,-483.2865,0.00034139,7]
[404105228,1769853032103,-483.2865,0.00034139,7]
[404105229,1769853032112,-277.50295366,0.00034139,7]
[404105230,1769853032122,-541.06,0.00034141,2]
[404105231,1769853032132,-541.06,0.00034141,2]
[404105232,1769853032141,-541.06,0.00034141,2]
[404105233,1769853032151,-541.06,0.00034141,2]
[404105235,1769853032160,-541.06,0.00034141,2]
[404105237,1769853032169,-541.06,0.00034141,2]
[404105239,1769853032179,-541.06,0.00034141,2]
[404105241,1769853032188,-541.06,0.00034141,2]
[404105243,1769853032198,-541.06,0.00034141,2]
[404105245,1769853032208,-541.06,0.00034141,2]
[404105247,1769853032218,-541.06,0.00034141,2]
[404105249,1769853032229,-541.06,0.00034141,2]
[404105251,1769853032239,-541.06,0.00034141,2]
[404105253,1769853032248,-541.06,0.00034141,2]
[404105255,1769853032256,-541.06,0.00034141,2]
[404105257,1769853032266,-541.06,0.00034141,2]
[404105259,1769853032278,-541.06,0.00034141,2]
[404105261,1769853032288,-541.06,0.00034141,2]
[404105263,1769853032297,-541.06,0.00034141,2]
[404105265,1769853032306,-541.06,0.00034141,2]
[404105267,1769853032316,-541.06,0.00034141,2]
[404105269,1769853032325,-541.06,0.00034141,2]
[404105271,1769853032335,-541.06,0.00034141,2]
[404105273,1769853032344,-541.06,0.00034141,2]
[404105275,1769853032354,-541.06,0.00034141,2]
[404105277,1769853032366,-541.06,0.00034141,2]
[404105279,1769853032375,-541.06,0.00034141,2]
[404105281,1769853032385,-541.06,0.00034141,2]
[404105283,1769853032394,-541.06,0.00034141,2]
[404105285,1769853032405,-541.06,0.00034141,2]
[404105287,1769853032414,-541.06,0.00034141,2]
[404105289,1769853032423,-541.06,0.00034141,2]
[404105291,1769853032437,-541.06,0.00034141,2]
[404105293,1769853032446,-541.06,0.00034141,2]
[404105295,1769853032456,-826.45,0.00034141,2]
[404105297,1769853032465,-500.0,0.00034204,2]
[404105299,1769853032475,-500.0,0.00034204,2]
[404105301,1769853032485,-500.0,0.00034204,2]
[404105303,1769853032494,-500.0,0.00034204,2]
[404105305,1769853032504,-500.0,0.00034204,2]
[404105307,1769853032514,-500.0,0.00034204,2]
[404105309,1769853032524,-500.0,0.0003422,2]
[404105311,1769853032533,-500.0,0.0003422,2]
[404105313,1769853032544,-500.0,0.0003422,2]
[404105316,1769853032558,-500.0,0.0003422,2]
[404105318,1769853032568,-500.0,0.0003422,2]
[404105319,1769853032577,-500.0,0.0003422,2]
[404105322,1769853032587,-319.0,0.00034302,2]
[404105323,1769853032597,-611.06,0.00034331,10]
[404105325,1769853032606,-168.0,0.00034337,2]
[404105327,1769853032615,-530.93154093,0.00034341,2]
[404105330,1769853032626,-400.0,0.00034341,2]
[404105332,1769853032636,-500.0,0.00034341,2]
[404105334,1769853032646,-500.0,0.00034341,2]
[404105336,1769853032655,-500.0,0.00034341,2]
[404105338,1769853032664,-500.0,0.00034341,2]
[404105339,1769853032673,-121453.73017142,0.00034341,2]
[404105453,1769853037865,-559.0,0.00034083,30]
[404105455,1769853037875,-2092.33741601,0.00034341,2]
[404105457,1769853037886,-657.70714393,0.00034341,2]
[404105460,1769853037905,-5824.79329647,0.00034341,2]
[404105463,1769853037918,-26226.51168397,0.00034341,2]
[404105465,1769853037930,-1084.902,0.00034341,2]
[404105469,1769853037959,-42061.89482348,0.00034341,2]
[404105471,1769853037970,-2787.66697875,0.00034341,2]
[404105478,1769853040108,-4018.65363036,0.00034341,2]
[404105484,1769853044937,-435.015,0.00034341,2]
[404105488,1769853046097,-82078.7281994,0.00034341,2]
[404105489,1769853046151,-2609.5579409,0.00034341,2]
[404105492,1769853415984,-500.0,0.00035309,120]
[404105493,1769853416015,-514.68989306,0.00035309,120]
[404105494,1769853416047,-1212.9577359,0.00035309,120]
[404105495,1769853416075,-2589.60115241,0.00035309,30]
[404105496,1769853416102,-938.28827941,0.00035309,35]
[404105497,1769853416130,-765.58055055,0.00035309,120]
[404105498,1769853416158,-385.9344883,0.00035309,120]
[404105499,1769853416186,-516.21263825,0.00035309,120]
[404105500,1769853416215,-485.79425021,0.00035309,120]
[404105501,1769853416241,-500.0,0.00035309,120]
[404105502,1769853416270,-500.0,0.00035309,120]
[404105503,1769853416298,-500.0,0.00035309,120]
[404105504,1769853416329,-500.0,0.00035309,120]
[404105505,1769853416354,-258.32492745,0.00035309,120]
[404105506,1769853416380,-500.0,0.00035309,120]
[404105507,1769853416406,-203.49338479,0.00035309,120]
[404105508,1769853416432,-203.49338478,0.00035309,120]
[404105509,1769853416457,-14198.06,0.00035309,60]
[404105510,1769853416481,-14198.06,0.00035309,60]
[404105511,1769853416507,-14198.06,0.00035309,60]
[404105512,1769853416534,-14198.06,0.00035309,60]
[404105513,1769853416560,-14198.06,0.00035309,60]
[404105514,1769853416586,-14198.06,0.00035309,60]
[404105515,1769853416612,-14198.06,0.00035309,60]
[404105516,1769853416638,-14198.06,0.00035309,60]
[404105517,1769853416664,-14198.06,0.00035309,60]
[404105518,1769853416696,-14198.06,0.00035309,60]
[404105519,1769853416726,-14198.06,0.00035309,60]
[404105520,1769853416754,-14198.06,0.00035309,60]
[404105521,1769853416780,-14198.06,0.00035309,60]
[404105522,1769853416806,-14198.06,0.00035309,60]
[404105523,1769853416832,-14198.06,0.00035309,60]
[404105524,1769853416860,-14198.06,0.00035309,60]
[404105525,1769853416885,-14198.06,0.00035309,60]
[404105526,1769853416913,-14198.06,0.00035309,60]
[404105527,1769853416939,-14198.06,0.00035309,60]
[404105528,1769853416965,-14198.06,0.00035309,60]
[404105529,1769853416991,-14198.06,0.00035309,60]
[404105530,1769853417017,-14198.06,0.00035309,60]
[404105531,1769853417042,-14198.06,0.00035309,60]
[404105532,1769853417068,-14198.12797994,0.00035309,60]
[404105533,1769853417101,-151.0,0.00035309,60]
[404105534,1769853417148,-151.0,0.00035309,60]
[404105535,1769853417178,-151.0,0.00035309,60]
[404105536,1769853417204,-151.0,0.00035309,60]
[404105537,1769853417229,-151.0,0.00035309,60]
[404105538,1769853417256,-151.0,0.00035309,60]
[404105539,1769853417285,-151.0,0.00035309,60]
[404105540,1769853417313,-151.0,0.00035309,60]
[404105541,1769853417341,-151.0,0.00035309,60]
[404105542,1769853417367,-151.0,0.00035309,60]
[404105543,1769853417393,-151.0,0.00035309,60]
[404105544,1769853417420,-213092.79361966,0.00035309,120]
[404105545,1769853417446,-6298.1474516,0.00035309,60]
[404105546,1769853417472,-172.304,0.00035309,31]
[404105547,1769853417498,-1250.3,0.00035309,30]
[404105548,1769853417528,-1250.3,0.00035309,30]
[404105549,1769853417561,-1250.3,0.00035309,30]
[404105550,1769853417588,-1250.3,0.00035309,30]
[404105551,1769853417617,-1250.3,0.00035309,30]
[404105552,1769853417644,-1250.3,0.00035309,30]
[404105553,1769853417673,-1250.3,0.00035309,30]
[404105554,1769853417702,-1250.3,0.00035309,30]
[404105555,1769853417729,-1250.3,0.00035309,30]
[404105556,1769853417756,-1250.3,0.00035309,30]
[404105557,1769853417783,-1250.3,0.00035309,30]
[404105558,1769853417811,-1250.3,0.00035309,30]
[404105559,1769853417840,-1250.3,0.00035309,30]
[404105560,1769853417869,-1250.3,0.00035309,30]
[404105561,1769853417896,-1250.3,0.00035309,30]
[404105562,1769853417923,-1250.3,0.00035309,30]
[404105563,1769853417949,-1250.3,0.00035309,30]
[404105564,1769853417975,-1250.3,0.00035309,30]
[404105565,1769853418000,-1250.3,0.00035309,30]
[404105566,1769853418025,-1250.3,0.00035309,30]
[404105567,1769853418051,-1250.3,0.00035309,30]
[404105568,1769853418077,-1250.3,0.00035309,30]
[404105569,1769853418102,-1250.3,0.00035309,30]
[404105570,1769853418219,-1250.34833772,0.00035309,30]
[404105571,1769853418249,-12000.0,0.00035309,45]
[404105572,1769853418278,-500.0,0.00035309,30]
[404105573,1769853418305,-500.0,0.00035309,30]
[404105574,1769853418333,-501.36638923,0.00035309,30]
[404105575,1769853418374,-396.34986175,0.00035309,120]
[404105576,1769853418404,-16676.90954904,0.00035309,120]
[404105577,1769853418436,-2007.0,0.00035309,30]
[404105578,1769853418465,-1583.55585306,0.00035309,120]
[404105579,1769853418493,-500.0,0.00035309,120]
[404105580,1769853418524,-500.0,0.00035309,120]
[404105581,1769853418556,-500.0,0.00035309,120]
[404105582,1769853418589,-500.0,0.00035309,120]
[404105583,1769853418618,-500.0,0.00035309,120]
[404105584,1769853418650,-593.456125,0.00035309,120]
[404105585,1769853418680,-167.484601,0.00035309,120]
[404105586,1769853418710,-167.484601,0.00035309,120]
[404105587,1769853418738,-167.484601,0.00035309,120]
[404105588,1769853418765,-167.484601,0.00035309,120]
[404105589,1769853418792,-167.4846,0.00035309,120]
[404105590,1769853418818,-167.4846,0.00035309,120]
[404105591,1769853418845,-873.38333972,0.00035309,120]
[404105592,1769853418871,-246.2784461,0.00035309,120]
[404105593,1769853418983,12881.96698155,0.00035309,30]
[404105594,1769853493234,-1274556.66820213,0.00035309,20]
[404105595,1769853493261,-2725443.33179787,0.00035309,20]
[404105597,1769853605259,-454.74564791,9e-05,2]
[404105598,1769853607300,-235.50935092,9e-05,2]
[404105599,1769853609972,-254.7,9e-05,2]
[404105600,1769853611500,-73.72500117,9e-05,2]
[404105601,1769853611521,-214.2725041,9e-05,2]
[404105602,1769853615394,-310.95791625,9e-05,2]
[404105603,1769853625915,-20.76957965,9e-05,2]
[404105604,1769853625943,-1018.68,9.4e-05,2]
[404105605,1769853625971,-1018.68,9.8e-05,2]
[404105606,1769853625990,-20.76957965,0.000103,2]
[404105607,1769853626002,-997.91042035,0.000103,2]
[404105608,1769853626011,-20.76957965,0.000107,2]
[404105609,1769853626022,-997.91042035,0.000107,2]
[404105610,1769853655810,-277.70648245,0.000111,2]
[404105611,1769853759759,150.0,0.0001,30]
[404105613,1769853903409,73699.0,0.00028767,120]
[404105614,1769853913587,250.0,0.00035336,30]
[404105615,1769853914162,250.0,0.00035336,30]
[404105616,1769853914814,250.0,0.00035336,30]
[404105617,1769853915403,250.0,0.00035336,30]
[404105618,1769853916036,250.0,0.00035336,30]
[404105645,1769854231890,-151.62,9e-05,2]
[404105647,1769854231899,-150.0,0.00010962,2]
[404105649,1769854231909,-725.98,0.000111,2]
[404105660,1769854231998,-14.99351755,0.000111,2]
[404105662,1769854232008,-151.62,0.000111,2]
[404105664,1769854232017,-1018.68,0.000116,2]
[404105666,1769854232026,-1018.68,0.00012,2]
[404105668,1769854232035,-1018.68,0.000124,2]
[404105670,1769854232044,-1018.68,0.000129,2]
[404105673,1769854232053,-177.0,0.00012962,2]
[404105676,1769854232062,-151.62,0.000132,2]
[404105679,1769854232071,-1018.68,0.000133,2]
[404105681,1769854232080,-300.0,0.00013673,2]
[404105683,1769854232089,-1200.0,0.00013698,2]
[404105685,1769854232097,-235.50737677,0.00013699,2]
[404105687,1769854232108,-264.49262323,0.00013699,2]
[404105689,1769854232117,-500.0,0.00013699,2]
[404105692,1769854232126,-500.0,0.00013699,2]
[404105693,1769854232135,-1018.68,0.000137,2]
[404105696,1769854232145,-1018.68,0.000142,2]
[404105698,1769854232155,-600.0,0.00014221,2]
[404105700,1769854232164,-1000.0,0.00014247,2]
[404105702,1769854232173,-349.71421088,0.00014247,2]
[404105704,1769854232181,-1018.68,0.000146,2]
[404105706,1769854232191,-300.0,0.00014768,2]
[404105708,1769854232200,-500.0,0.00014795,2]
[404105710,1769854232209,-204.0,0.00014962,2]
[404105712,1769854232217,-1018.68,0.00015,2]
[404105714,1769854232226,-151.62,0.000153,2]
[404105715,1769854232235,-1018.68,0.000155,2]
[404105718,1769854232252,-1018.68,0.000159,2]
[404105721,1769854232263,-1018.68,0.000163,2]
[404105723,1769854232272,-1018.68,0.000168,2]
[404105724,1769854232281,-162.0,0.00016962,2]
[404105726,1769854232290,-1018.68,0.000172,2]
[404105728,1769854232299,-151.62,0.000174,2]
[404105730,1769854232308,-1018.68,0.000176,2]
[404105732,1769854232317,-1018.68,0.00018,2]
[404105734,1769854232326,-1018.68,0.000185,2]
[404105736,1769854232335,-387.05739507,0.000189,2]
[404105762,1769854232568,-488.93656277,0.000189,2]
[404105764,1769854232580,-142.68604216,0.000189,2]
[404105766,1769854232590,-936.59177862,0.000193,2]
[404105769,1769854232601,-82.08822138,0.000193,2]
[404105771,1769854232610,-151.62,0.000196,2]
[404105772,1769854232627,-300.83939706,0.000198,2]
[404105775,1769854232638,-717.84060294,0.000198,2]
[404105777,1769854232647,-1018.68,0.000202,2]
[404105779,1769854232656,-193.51907213,0.000206,2]
[404105781,1769854232667,-825.16092787,0.000206,2]
[404105783,1769854232676,-150.0,0.00021,2]
[404105785,1769854232685,-71.23752746,0.000211,2]
[404106415,1769854240327,-675.61857851,0.000211,2]
[404106416,1769854240461,-2e-08,0.000211,2]
[404106429,1769854243308,-271.82389401,0.000211,2]
[404106430,1769854243317,-1018.68,0.000215,2]
[404106431,1769854243326,-151.62,0.000217,2]
[404106432,1769854243336,-1018.68,0.000219,2]
[404106433,1769854243345,-160.0,0.0002211,2]
[404106434,1769854243355,-402.85139894,0.000224,2]
[404106439,1769854246136,-615.82860106,0.000224,2]
[404106440,1769854246145,-1018.68,0.000228,2]
[404106441,1769854246155,-167.0,0.00023014,8]
[404106442,1769854246164,-1018.68,0.000232,2]
[404106443,1769854246174,-295.94377664,0.000237,2]
[404106454,1769854247224,-722.73622336,0.000237,2]
[404106455,1769854247233,-151.62,0.000238,2]
[404106456,1769854247247,-1018.68,0.000241,2]
[404106457,1769854247259,-1018.68,0.000245,2]
[404106458,1769854247270,-150.0,0.00024658,2]
[404106459,1769854247292,-1018.68,0.00025,2]
[404106460,1769854247312,-250.0,0.00025205,2]
[404106461,1769854247322,-1018.68,0.000254,2]
[404106462,1769854247331,-300.63898669,0.00025753,2]
[404106464,1769854247340,-1018.68,0.000258,2]
[404106466,1769854247349,-151.62,0.000259,2]
[404106467,1769854247359,-1018.68,0.000263,2]
[404106469,1769854247368,-1018.68,0.000267,2]
[404106471,1769854247377,-1018.68,0.000271,2]
[404106473,1769854247386,-157.76568554,0.00027397,5]
[404106474,1769854247395,-150.0,0.00027397,5]
[404106475,1769854247403,-150.0,0.00027397,5]
[404106476,1769854247413,-516.69703476,0.00027397,5]
[404106478,1769854247422,-1018.68,0.000275,2]
[404106480,1769854247431,-250.0,0.00027945,5]
[404106482,1769854247440,-250.0,0.00027945,5]
[404106484,1769854247449,-1018.68,0.00028,2]
[404106486,1769854247458,-151.62,0.00028,2]
[404106487,1769854247469,-1018.68,0.000284,2]
[404106489,1769854247478,-350.0,0.00028493,5]
[404106490,1769854247487,-350.0,0.00028493,5]
[404106491,1769854247495,-1018.68,0.000288,2]
[404106492,1769854247504,-450.0,0.00029041,5]
[404106493,1769854247513,-450.0,0.00029041,5]
[404106494,1769854247522,-1018.68,0.000293,2]
[404106495,1769854247531,-550.0,0.00029589,5]
[404106496,1769854247540,-550.0,0.00029589,5]
[404106497,1769854247550,-1018.68,0.000297,2]
[404106498,1769854247559,-1018.68,0.000301,2]
[404106499,1769854247568,-151.62,0.000301,2]
[404106500,1769854247577,-650.0,0.00030137,5]
[404106501,1769854247587,-650.0,0.00030137,5]
[404106502,1769854247596,-160.0,0.00030495,3]
[404106503,1769854247606,-601.89919822,0.00030685,5]
[404106504,1769854247616,-603.88219611,0.00030685,5]
[404106505,1769854247625,-560.5,0.00032175,30]
[404106506,1769854247634,-281.63005824,0.00032877,2]
[404106507,1769854247643,-2772.357395,0.000333,18]
[404106508,1769854247651,-400.0,0.00033324,11]
[404106509,1769854247661,-400.0,0.00033347,11]
[404106510,1769854247670,-400.0,0.00033359,11]
[404106511,1769854247679,-400.0,0.00033379,11]
[404106512,1769854247688,-400.0,0.00033406,11]
[404106513,1769854247698,-400.0,0.00033432,11]
[404106514,1769854247707,-403.0,0.00033493,11]
[404106515,1769854247716,-805.0,0.00033514,11]
[404106516,1769854247725,-400.0,0.00033699,11]
[404106517,1769854247735,-400.0,0.00033703,11]
[404106518,1769854247744,-400.0,0.00033703,11]
[404106519,1769854247753,-400.0,0.00033752,11]
[404106520,1769854247762,-1500.0,0.000338,18]
[404106521,1769854247772,-400.0,0.00033834,11]
[404106522,1769854247781,-7459.28180357,0.00033887,2]
[404106523,1769854247791,-318.73,0.0003393,3]
[404106524,1769854247800,-159.37,0.0003393,3]
[404106525,1769854247810,-478.11,0.0003393,3]
[404106526,1769854247820,-710.0,0.0003393,11]
[404106527,1769854247828,-710.0,0.00033987,11]
[404106528,1769854247838,-5874.68,0.00034,14]
[404106529,1769854247847,-400.0,0.00034019,11]
[404106530,1769854247856,-7459.2818035,0.00034038,2]
[404106531,1769854247865,-618.21,0.00034039,30]
[404106532,1769854247875,-487.0,0.0003404,2]
[404106533,1769854247884,-487.0,0.0003404,2]
[404106534,1769854247898,-487.0,0.0003404,2]
[404106535,1769854247907,-487.0,0.0003404,2]
[404106536,1769854247916,-487.0,0.0003404,2]
[404106537,1769854247927,-487.0,0.0003404,2]
[404106538,1769854247936,-487.0,0.0003404,2]
[404106539,1769854247945,-487.0,0.0003404,2]
[404106540,1769854247954,-487.0,0.0003404,2]
[404106541,1769854247963,-487.0,0.0003404,2]
[404106542,1769854247972,-487.0,0.0003404,2]
[404106543,1769854247981,-487.0,0.0003404,2]
[404106544,1769854247990,-487.0,0.0003404,2]
[404106545,1769854247999,-487.0,0.0003404,2]
[404106546,1769854248009,-487.0,0.0003404,2]
[404106547,1769854248018,-487.0,0.0003404,2]
[404106548,1769854248027,-487.0,0.0003404,2]
[404106549,1769854248036,-487.0,0.0003404,2]
[404106550,1769854248045,-487.0,0.0003404,2]
[404106551,1769854248055,-487.0,0.0003404,2]
[404106552,1769854248065,-487.0,0.0003404,2]
[404106553,1769854248079,-921.16,0.0003404,2]
[404106554,1769854248088,-710.0,0.0003405,11]
[404106555,1769854248097,-500.0,0.00034067,2]
[404106556,1769854248105,-200.0,0.00034067,2]
[404106557,1769854248115,-500.0,0.00034067,2]
[404106558,1769854248124,-500.0,0.00034067,2]
[404106559,1769854248133,-150.0,0.00034067,2]
[404106560,1769854248142,-150.0,0.00034067,2]
[404106561,1769854248152,-500.0,0.00034067,2]
[404106562,1769854248162,-500.0,0.00034067,2]
[404106563,1769854248171,-804.4404476,0.0003414,7]
[404106564,1769854248180,-250.0,0.0003414,120]
[404106565,1769854248292,-250.0,0.0003414,120]
[404106566,1769854248304,-250.0,0.0003414,120]
[404106567,1769854248313,-250.0,0.0003414,120]
[404106568,1769854248322,-250.0,0.0003414,120]
[404106569,1769854248331,-250.0,0.0003414,120]
[404106570,1769854248340,-250.0,0.0003414,120]
[404106571,1769854248348,-250.0,0.0003414,120]
[404106572,1769854248358,-250.0,0.0003414,120]
[404106573,1769854248367,-250.0,0.0003414,120]
[404106574,1769854248376,-250.0,0.0003414,120]
[404106575,1769854248385,-250.0,0.0003414,120]
[404106576,1769854248394,-250.0,0.0003414,120]
[404106577,1769854248403,-250.0,0.0003414,120]
[404106578,1769854248412,-250.0,0.0003414,120]
[404106579,1769854248422,-250.0,0.0003414,120]
[404106580,1769854248432,-250.0,0.0003414,120]
[404106581,1769854248441,-250.0,0.0003414,120]
[404106582,1769854248450,-250.0,0.0003414,120]
[404106583,1769854248458,-252.614585,0.0003414,120]
[404106584,1769854248467,-7459.2818035,0.00034189,2]
[404106585,1769854248476,-500.0,0.00034204,2]
[404106586,1769854248485,-500.0,0.00034204,2]
[404106587,1769854248494,-500.0,0.00034204,2]
[404106588,1769854248503,-150.0,0.00034204,2]
[404106589,1769854248512,-150.0,0.00034204,2]
[404106590,1769854248522,-500.0,0.00034204,2]
[404106591,1769854248531,-352.15521784,0.00034206,2]
[404106592,1769854248540,-710.0,0.00034232,11]
[404106593,1769854248557,-400.0,0.00034269,11]
[404106594,1769854248568,-710.0,0.00034284,11]
[404106595,1769854248578,-400.0,0.00034295,11]
[404106596,1769854248587,-1500.0,0.000343,18]
[404106597,1769854248598,-710.0,0.00034303,11]
[404106598,1769854248609,-633.87939211,0.00034303,2]
[404106599,1769854248619,-161.0,0.00034319,11]
[404106600,1769854248628,-11231.7514849,0.00034332,2]
[404106601,1769854248638,-3023.6552931,0.00034332,2]
[404106602,1769854248647,-2221.4041923,0.00034332,2]
[404106603,1769854248657,-400.0,0.00034339,11]
[404106604,1769854248666,-710.0,0.00034339,11]
[404106605,1769854248676,-7459.2818035,0.0003434,2]
[404106606,1769854248686,-500.0,0.00034341,2]
[404106607,1769854248695,-500.0,0.00034341,2]
[404106608,1769854248705,-500.0,0.00034341,2]
[404106609,1769854248715,-150.0,0.00034341,2]
[404106610,1769854248724,-204.00504601,0.00034341,2]
[404106611,1769854248734,-234805.58323981,0.00034341,2]
[404106613,1769854453052,500.0,0.00035334,30]
[404106623,1769854937132,200.0,0.00035364,120]
[404106624,1769854937304,317.54569029,0.00035364,120]
[404106625,1769855095959,5560.5,0.00030137,120]
[404106630,1769855235236,1460.65,0.00035364,30]
[404106646,1769855432067,-500.03326142,0.00024,2]
[404106647,1769855432077,-110.91583713,0.00024548,3]
[404106648,1769855432088,-48.44416287,0.00024548,3]
[404106649,1769855432097,-478.12,0.00024548,3]
[404106650,1769855432106,-190.08906574,0.00024556,2]
[404106651,1769855432118,-109.91093426,0.00024556,2]
[404106652,1769855432127,-1200.0,0.00024556,2]
[404106653,1769855432137,-598.79291307,0.00024557,2]
[404106654,1769855432146,-254.86250845,0.00024557,2]
[404106655,1769855432155,-1331.33449616,0.00024558,2]
[404106656,1769855432166,-2221.3362772,0.00024558,2]
[404106657,1769855432177,-330.25242726,0.00024558,2]
[404106658,1769855432188,-475.4221411,0.00024558,2]
[404106659,1769855432198,-342389.79811491,0.00024558,2]
[404106660,1769855432209,-4485.65774862,0.00024558,2]
[404106661,1769855432220,-5269.30010608,0.00024558,2]
[404106683,1769855438251,-47210.96523252,0.00024558,2]
[404106684,1769855438263,-10930.43790752,0.00024558,2]
[404106685,1769855438274,-153.77,0.000246,14]
[404106686,1769855438284,-1280.93750252,0.0002465,2]
[404106687,1769855438306,-57111.90712604,0.0002465,2]
[404106688,1769855438370,-5226.1458912,0.0002465,2]
[404106689,1769855438382,-5807.27602734,0.0002465,2]
[404106746,1769855446533,-6088.58080836,0.000245,2]
[404106747,1769855446543,-8124.96771975,0.0002465,2]
[404106748,1769855649989,151.0,0.00035362,31]
[404106749,1769855650563,229.080672,0.00035362,31]
[404106750,1769855727866,497.0,0.00030137,120]
[404106752,1769855760558,500.0,0.00035362,120]
[404106753,1769855760792,500.0,0.00035362,120]
[404106754,1769855761021,500.0,0.00035362,120]
[404106755,1769855761263,500.0,0.00035362,120]
[404106756,1769855761537,500.0,0.00035362,120]
[404106757,1769855761987,505.90631132,0.00035362,120]
[404106778,1769856632393,-572.62277611,0.00022855,2]
[404106779,1769856632404,-469.04389056,0.00022855,2]
[404106780,1769856632414,-269.9101002,0.00023227,2]
[404106781,1769856632423,-300.0,0.00023599,2]
[404106782,1769856632434,-300.0,0.00023599,2]
[404106783,1769856632443,-300.0,0.00023599,2]
[404106785,1769856632451,-300.0,0.00023599,2]
[404106786,1769856632460,-1200.0,0.00023599,2]
[404106788,1769856632470,-3230.0,0.000236,2]
[404106789,1769856632478,-300.0,0.00023899,2]
[404106790,1769856632487,-6804.90083237,0.000239,2]
[404106791,1769856632496,-690.2438594,0.00024045,2]
[404106792,1769856632505,-500.0,0.00024647,2]
[404106793,1769856632514,-500.6381265,0.00024647,2]
[404106794,1769856632523,-500.0,0.00024647,2]
[404106795,1769856632532,-500.0,0.00024647,2]
[404106796,1769856632541,-500.0,0.00024647,2]
[404106797,1769856632550,-500.0,0.00024647,2]
[404106798,1769856632560,-500.0,0.00024647,2]
[404106799,1769856632569,-500.0,0.00024647,2]
[404106800,1769856632580,-500.0,0.00024647,2]
[404106801,1769856632589,-500.0,0.00024647,2]
[404106802,1769856632599,-500.0,0.00024647,2]
[404106803,1769856632612,-500.0,0.00024647,2]
[404106804,1769856632622,-335.86906018,0.00024647,2]
[404106806,1769856632632,-500.0,0.00024647,2]
[404106807,1769856632777,-500.0,0.00024647,2]
[404106808,1769856632786,-500.0,0.00024647,2]
[404106809,1769856632797,-502.07035402,0.00024647,2]
[404106811,1769856632806,-500.0,0.00024647,2]